Workbook

Sheet SCH G-12 Uncoll 3 Yr Avg TGS
A2: SCH G-12 UNCOLLECTIBLE EXPENSE
A3: For Periods ending December 2022-2024
A6: TEXAS GAS SERVICE AREA
A8: UNCOLLECTIBLE EXPENSE
A10: Line No | B10: Period | C10: Base Revenue Write Offs (1) | D10: Base Revenue | E10: Uncollectible Ratio for Base Revenues
B11: (a) | C11: (b) | D11: (c) | E11: (d)
A12: 1 | B12: Twelve Months Ended December 2022 | C12: =+'SCH G-12 Uncoll 3 Yr Avg CGSA'!C12+'SCH G-12 Uncoll 3 Yr Avg RGSA'!C12+'SCH G-12 Uncoll 3 Yr Avg WNSA'!C12 -> 2369667.8 | D12: =+'SCH G-12 Uncoll 3 Yr Avg CGSA'!D12+'SCH G-12 Uncoll 3 Yr Avg RGSA'!D12+'SCH G-12 Uncoll 3 Yr Avg WNSA'!D12 -> 304741476.1 | E12: =+C12/D12 -> 0.007775993706
A13: =1+A12 -> 2 | B13: Twelve Months Ended December 2023 | C13: =+'SCH G-12 Uncoll 3 Yr Avg CGSA'!C13+'SCH G-12 Uncoll 3 Yr Avg RGSA'!C13+'SCH G-12 Uncoll 3 Yr Avg WNSA'!C13 -> 2512140.4 | D13: =+'SCH G-12 Uncoll 3 Yr Avg CGSA'!D13+'SCH G-12 Uncoll 3 Yr Avg RGSA'!D13+'SCH G-12 Uncoll 3 Yr Avg WNSA'!D13 -> 332471197.4 | E13: =+C13/D13 -> 0.007555964005
A14: =1+A13 -> 3 | B14: Twelve Months Ended December 2024 | C14: =+'SCH G-12 Uncoll 3 Yr Avg CGSA'!C14+'SCH G-12 Uncoll 3 Yr Avg RGSA'!C14+'SCH G-12 Uncoll 3 Yr Avg WNSA'!C14 -> 2491471.08 | D14: =+'SCH G-12 Uncoll 3 Yr Avg CGSA'!D14+'SCH G-12 Uncoll 3 Yr Avg RGSA'!D14+'SCH G-12 Uncoll 3 Yr Avg WNSA'!D14 -> 365446212 | E14: 0.006817613641
A15: 4
A16: 5 | B16: Average | C16: =+AVERAGE(C12:C14) -> 2457759.76 | D16: =+AVERAGE(D12:D14) -> 334219628.5 | E16: =ROUND(+C16/D16,6) -> 0.007354
A17: 6
A18: 7
A19: 8
A20: 9 | B20: Estimated Bad Debts related to Gas Cost Revenue
A21: 10
A22: 11 | B22: Twelve Month Period | C22: Gas Cost Bad Debt | D22: COG Revenue | E22: Uncollectible Ratio for COG Revenues
A23: 12 | B23: Twelve Months Ended December 2022 | C23: =+'SCH G-12 Uncoll 3 Yr Avg CGSA'!C23+'SCH G-12 Uncoll 3 Yr Avg RGSA'!C23+'SCH G-12 Uncoll 3 Yr Avg WNSA'!C23 -> 1198280.81 | D23: =+'SCH G-12 Uncoll 3 Yr Avg CGSA'!D23+'SCH G-12 Uncoll 3 Yr Avg RGSA'!D23+'SCH G-12 Uncoll 3 Yr Avg WNSA'!D23 -> 310617282.3 | E23: =+C23/D23 -> 0.003857740307
A24: 13 | B24: Twelve Months Ended December 2023 | C24: =+'SCH G-12 Uncoll 3 Yr Avg CGSA'!C24+'SCH G-12 Uncoll 3 Yr Avg RGSA'!C24+'SCH G-12 Uncoll 3 Yr Avg WNSA'!C24 -> 1376846.76 | D24: =+'SCH G-12 Uncoll 3 Yr Avg CGSA'!D24+'SCH G-12 Uncoll 3 Yr Avg RGSA'!D24+'SCH G-12 Uncoll 3 Yr Avg WNSA'!D24 -> 258291065 | E24: =+C24/D24 -> 0.005330601583
A25: 14 | B25: Twelve Months Ended December 2024 | C25: =+'SCH G-12 Uncoll 3 Yr Avg CGSA'!C25+'SCH G-12 Uncoll 3 Yr Avg RGSA'!C25+'SCH G-12 Uncoll 3 Yr Avg WNSA'!C25 -> 508612.03 | D25: =+'SCH G-12 Uncoll 3 Yr Avg CGSA'!D25+'SCH G-12 Uncoll 3 Yr Avg RGSA'!D25+'SCH G-12 Uncoll 3 Yr Avg WNSA'!D25 -> 172912541.2 | E25: 0.002941440954
A26: 15
A27: 16 | B27: Average | C27: =+AVERAGE(C23:C25) -> 1027913.2 | D27: =+AVERAGE(D23:D25) -> 247273629.5 | E27: =ROUND(C27/D27,6) -> 0.004157
B31: Note 1: Actual bad debt write-offs relating to gas cost recovery revenue are to be recovered through the PGA. Therefore, uncollectible expense above is calculated based only on base revenue

Sheet SCH G-12 Uncoll 3 Yr Avg CGSA
A2: SCH G-12 UNCOLLECTIBLE EXPENSE
A3: For Periods ending December 2022-2024
A6: CENTRAL-GULF SERVICE AREA
A8: UNCOLLECTIBLE EXPENSE
A10: Line No | B10: Period | C10: Base Revenue Write Offs (1) | D10: Base Revenue | E10: Uncollectible Ratio for Base Revenues
B11: (a) | C11: (b) | D11: (c) | E11: (d)
A12: 1 | B12: Twelve Months Ended December 2022 | C12: 919846.17 | D12: 137791869.5 | E12: =+C12/D12 -> 0.006675620075
A13: =1+A12 -> 2 | B13: Twelve Months Ended December 2023 | C13: 907234.46 | D13: 148521157.5 | E13: =+C13/D13 -> 0.006108452663
A14: =1+A13 -> 3 | B14: Twelve Months Ended December 2024 | C14: 1020574.5 | D14: 165095119.4 | E14: 0.006181736345
A15: 4
A16: 5 | B16: Average | C16: =+AVERAGE(C12:C14) -> 949218.3767 | D16: =+AVERAGE(D12:D14) -> 150469382.1 | E16: =ROUND(+C16/D16,6) -> 0.006308
A17: 6
A18: 7
A19: 8
A20: 9 | B20: Estimated Bad Debts related to Gas Cost Revenue
A21: 10
A22: 11 | B22: Twelve Month Period | C22: Gas Cost Bad Debt | D22: COG Revenue | E22: Uncollectible Ratio for COG Revenues
A23: 12 | B23: Twelve Months Ended December 2022 | C23: 453247.18 | D23: 125741758.3 | E23: =+C23/D23 -> 0.003604587579
A24: 13 | B24: Twelve Months Ended December 2023 | C24: 382307.78 | D24: 93904158.77 | E24: =+C24/D24 -> 0.004071255044
A25: 14 | B25: Twelve Months Ended December 2024 | C25: 224680.8 | D25: 71526562.33 | E25: 0.003141221844
A26: 15
A27: 16 | B27: Average | C27: =+AVERAGE(C23:C25) -> 353411.92 | D27: =+AVERAGE(D23:D25) -> 97057493.12 | E27: =ROUND(C27/D27,6) -> 0.003641
B31: Note 1: Actual bad debt write-offs relating to gas cost recovery revenue are to be recovered through the PGA. Therefore, uncollectible expense above is calculated based only on base revenue

Sheet SCH G-12 Uncoll 3 Yr Avg RGSA
A2: SCH G-12 UNCOLLECTIBLE EXPENSE
A3: For Periods ending December 2022-2024
A6: RIO GRANDE VALLEY SERVICE AREA
A8: UNCOLLECTIBLE EXPENSE
A10: Line No | B10: Period | C10: Base Revenue Write Offs (1) | D10: Base Revenue | E10: Uncollectible Ratio for Base Revenues
B11: (a) | C11: (b) | D11: (c) | E11: (d)
A12: 1 | B12: Twelve Months Ended December 2022 | C12: 438640.21 | D12: 36522657 | E12: =+C12/D12 -> 0.01201008486
A13: =1+A12 -> 2 | B13: Twelve Months Ended December 2023 | C13: 387450.8 | D13: 37712853.11 | E13: =+C13/D13 -> 0.01027370692
A14: =1+A13 -> 3 | B14: Twelve Months Ended December 2024 | C14: 380467.17 | D14: 45374987.66 | E14: 0.008384953685
A15: 4
A16: 5 | B16: Average | C16: =+AVERAGE(C12:C14) -> 402186.06 | D16: =+AVERAGE(D12:D14) -> 39870165.92 | E16: =ROUND(+C16/D16,6) -> 0.010087
A17: 6
A18: 7
A19: 8
A20: 9 | B20: Estimated Bad Debts related to Gas Cost Revenue
A21: 10
A22: 11 | B22: Twelve Month Period | C22: Gas Cost Bad Debt | D22: COG Revenue | E22: Uncollectible Ratio for COG Revenues
A23: 12 | B23: Twelve Months Ended December 2022 | C23: 96650.07 | D23: 24160950.55 | E23: =+C23/D23 -> 0.004000259419
A24: 13 | B24: Twelve Months Ended December 2023 | C24: 72466.43 | D24: 12220319.2 | E24: =+C24/D24 -> 0.005929994856
A25: 14 | B25: Twelve Months Ended December 2024 | C25: 24304.28 | D25: 7621464.99 | E25: 0.003188924968
A26: 15
A27: 16 | B27: Average | C27: =+AVERAGE(C23:C25) -> 64473.59333 | D27: =+AVERAGE(D23:D25) -> 14667578.25 | E27: =ROUND(C27/D27,6) -> 0.004396
B31: Note 1: Actual bad debt write-offs relating to gas cost recovery revenue are to be recovered through the PGA. Therefore, uncollectible expense above is calculated based only on base revenue

Sheet SCH G-12 Uncoll 3 Yr Avg WNSA
A2: SCH G-12 UNCOLLECTIBLE EXPENSE
A3: For Periods ending December 2022-2024
A6: WEST NORTH SERVICE AREA
A8: UNCOLLECTIBLE EXPENSE
A10: Line No | B10: Period | C10: Base Revenue Write Offs (1) | D10: Base Revenue | E10: Uncollectible Ratio for Base Revenues
B11: (a) | C11: (b) | D11: (c) | E11: (d)
A12: 1 | B12: Twelve Months Ended December 2022 | C12: 1011181.42 | D12: 130426949.6 | E12: =+C12/D12 -> 0.007752856468
A13: =1+A12 -> 2 | B13: Twelve Months Ended December 2023 | C13: 1217455.14 | D13: 146237186.8 | E13: =+C13/D13 -> 0.008325208977
A14: 2 | B14: Twelve Months Ended December 2024 | C14: 1090429.41 | D14: 154976104.9 | E14: 0.007036113151
A15: =1+A14 -> 3
A16: 3 | B16: Average | C16: =+AVERAGE(C12:C14) -> 1106355.323 | D16: =+AVERAGE(D12:D14) -> 143880080.4 | E16: =ROUND(+C16/D16,6) -> 0.007689
A17: =1+A16 -> 4
A18: 4
A19: =1+A18 -> 5
A20: 5 | B20: Estimated Bad Debts related to Gas Cost Revenue
A21: =1+A20 -> 6
A22: 6 | B22: Twelve Month Period | C22: Gas Cost Bad Debt | D22: COG Revenue | E22: Uncollectible Ratio for COG Revenues
A23: =1+A22 -> 7 | B23: Twelve Months Ended December 2022 | C23: 648383.56 | D23: 160714573.5 | E23: =+C23/D23 -> 0.004034379371
A24: 7 | B24: Twelve Months Ended December 2023 | C24: 922072.55 | D24: 152166587 | E24: =+C24/D24 -> 0.006059625624
A25: =1+A24 -> 8 | B25: Twelve Months Ended December 2024 | C25: 259626.95 | D25: 93764513.84 | E25: 0.002768925464
A26: 8
A27: =1+A26 -> 9 | B27: Average | C27: =+AVERAGE(C23:C25) -> 610027.6867 | D27: =+AVERAGE(D23:D25) -> 135548558.1 | E27: =ROUND(C27/D27,6) -> 0.0045
B32: Note 1: Actual bad debt write-offs relating to gas cost recovery revenue are to be recovered through the PGA. Therefore, uncollectible expense above is calculated based only on base revenue
